[Event "2026 European Womens Championship"]
[Site "Batumi, GE"]
[Date "2026.06.03"]
[Round "9"]
[White "Akat, Elifnaz"]
[Black "Huseynova, Lala"]
[Result "0-1"]
[Board "56"]
[TimeControl "5400+30"]
[WhiteFideId "34560556"]
[BlackFideId "13431781"]
[WhiteElo "2061"]
[BlackElo "2149"]
[WhiteTitle "WFM"]
[BlackTitle "WFM"]
[WhiteClock "0:08:53"]
[BlackClock "0:07:22"]
[Variant "Standard"]

1. e4 {[%clk 1:30:58]}  c5 {[%clk 1:30:34]} 2. Nf3 {[%clk 1:31:26]}  d6 {[%clk 1:30:56]} 3. Bb5+ {[%clk 1:31:53]}  Bd7 {[%clk 1:30:34]}
4. Bxd7+ {[%clk 1:32:21]}  Qxd7 {[%clk 1:30:57]} 5. O-O {[%clk 1:32:46]}  Nf6 {[%clk 1:31:18]} 6. Re1 {[%clk 1:33:01]}  Nc6 {[%clk 1:31:09]}
7. c3 {[%clk 1:33:29]}  e6 {[%clk 1:31:07]} 8. d4 {[%clk 1:33:55]}  cxd4 {[%clk 1:31:30]} 9. cxd4 {[%clk 1:34:23]}  d5 {[%clk 1:31:45]}
10. e5 {[%clk 1:34:48]}  Ne4 {[%clk 1:32:11]} 11. Nbd2 {[%clk 1:35:04]}  Nxd2 {[%clk 1:31:42]} 12. Bxd2 {[%clk 1:35:33]}  Bb4 {[%clk 1:31:17]}
13. a3 {[%clk 1:34:00]}  Bxd2 {[%clk 1:29:54]} 14. Qxd2 {[%clk 1:34:29]}  O-O {[%clk 1:28:13]} 15. Re3 {[%clk 1:33:05]}  Rfc8 {[%clk 1:21:07]}
16. Ng5 {[%clk 1:28:20]}  h6 {[%clk 1:18:33]} 17. Nh3 {[%clk 1:24:17]}  Ne7 {[%clk 1:15:15]} 18. Nf4 {[%clk 1:18:40]}  Nf5 {[%clk 0:59:17]}
19. Rd3 {[%clk 1:13:56]}  Qa4 {[%clk 0:55:20]} 20. b3 {[%clk 1:12:34]}  Qc6 {[%clk 0:54:40]} 21. g4 {[%clk 1:12:10]}  Ne7 {[%clk 0:50:14]}
22. Rh3 {[%clk 0:44:13]}  Qc2 {[%clk 0:42:07]} 23. Qe3 {[%clk 0:41:17]}  Rc6 {[%clk 0:35:20]} 24. Nh5 {[%clk 0:35:02]}  Qg6 {[%clk 0:32:26]}
25. Rg3 {[%clk 0:29:03]}  Rac8 {[%clk 0:30:19]} 26. Re1 {[%clk 0:28:00]}  Rc3 {[%clk 0:26:50]} 27. Qf4 {[%clk 0:28:01]}  Qg5 {[%clk 0:20:51]}
28. Rge3 {[%clk 0:21:09]}  Rxe3 {[%clk 0:18:33]} 29. Rxe3 {[%clk 0:20:28]}  Rc1+ {[%clk 0:18:08]} 30. Kg2 {[%clk 0:20:56]}  Qxf4 {[%clk 0:15:24]}
31. Nxf4 {[%clk 0:21:24]}  Rd1 {[%clk 0:15:31]} 32. Rd3 {[%clk 0:09:53]}  Rxd3 {[%clk 0:15:00]} 33. Nxd3 {[%clk 0:10:21]}  Nc6 {[%clk 0:15:26]}
34. f4 {[%clk 0:09:10]}  Nxd4 {[%clk 0:15:19]} 35. Nc1 {[%clk 0:09:35]}  Kf8 {[%clk 0:13:31]} 36. Kf2 {[%clk 0:09:52]}  Ke7 {[%clk 0:12:28]}
37. a4 {[%clk 0:10:20]}  f6 {[%clk 0:05:52]} 38. Ke3 {[%clk 0:08:44]}  Nc6 {[%clk 0:05:23]} 39. exf6+ {[%clk 0:07:19]}  Kxf6 {[%clk 0:05:28]}
40. Nd3 {[%clk 0:07:32]}  g5 {[%clk 0:04:46]} 41. h3 {[%clk 0:02:25]}  b6 {[%clk 0:02:39]} 42. b4 {[%clk 0:26:41]}  gxf4+ {[%clk 0:25:14]}
43. Kxf4 {[%clk 0:26:35]}  e5+ {[%clk 0:25:10]} 44. Ke3 {[%clk 0:27:00]}  a6 {[%clk 0:23:27]} 45. h4 {[%clk 0:25:40]}  b5 {[%clk 0:23:02]}
46. a5 {[%clk 0:24:37]}  e4 {[%clk 0:18:00]} 47. Nc5 {[%clk 0:15:04]}  Nxb4 {[%clk 0:18:01]} 48. Kd4 {[%clk 0:15:23]}  Nc6+ {[%clk 0:14:58]}
49. Kxd5 {[%clk 0:15:12]}  e3 {[%clk 0:14:31]} 50. Kxc6 {[%clk 0:11:33]}  e2 {[%clk 0:14:43]} 51. Nd3 {[%clk 0:12:02]}  b4 {[%clk 0:15:03]}
52. Kb6 {[%clk 0:12:30]}  b3 {[%clk 0:14:43]} 53. g5 {[%clk 0:11:51]}  hxg5 {[%clk 0:12:07]} 54. hxg5 {[%clk 0:12:20]}  Kxg5 {[%clk 0:08:48]}
55. Kxa6 {[%clk 0:12:40]}  b2 {[%clk 0:09:03]} 56. Nxb2 {[%clk 0:12:52]}  e1=Q {[%clk 0:09:28]} 57. Na4 {[%clk 0:11:04]}  Qb4 {[%clk 0:09:06]}
58. Nb6 {[%clk 0:10:56]}  Kf5 {[%clk 0:09:02]} 59. Na8 {[%clk 0:10:24]}  Ke6 {[%clk 0:06:45]} 60. Nc7 {[%clk 0:09:20]}  Kd7 {[%clk 0:06:49]}
61. Nb5 {[%clk 0:09:03]}  Kc6 {[%clk 0:06:22]} 62. Nd4 {[%clk 0:09:11]}  Kc5 {[%clk 0:06:33]} 63. Ne6+ {[%clk 0:08:06]}  Kd6 {[%clk 0:06:51]}
64. Nd8 {[%clk 0:08:20]}  Kd7 {[%clk 0:06:18]} 65. Nb7 {[%clk 0:08:16]}  Kc7 {[%clk 0:06:34]} 66. Nc5 {[%clk 0:08:27]}  Qc4+ {[%clk 0:06:55]}
67. Ka7 {[%clk 0:08:53]}  Qxc5+ {[%clk 0:07:22]} 0-1

[Event "2026 European Womens Championship"]
[Site "Batumi, GE"]
[Date "2026.06.03"]
[Round "9"]
[White "Hayrapetyan, Nvard"]
[Black "Mgeladze, Kesaria"]
[Result "0-1"]
[Board "57"]
[TimeControl "5400+30"]
[WhiteFideId "13316460"]
[BlackFideId "13621130"]
[WhiteElo "2057"]
[BlackElo "2147"]
[WhiteTitle "WFM"]
[BlackTitle "WIM"]
[WhiteClock "0:01:04"]
[BlackClock "0:02:07"]
[Variant "Standard"]

1. d4 {[%clk 1:30:58]}  Nf6 {[%clk 1:30:55]} 2. c4 {[%clk 1:31:25]}  e6 {[%clk 1:31:20]} 3. Nc3 {[%clk 1:31:51]}  Bb4 {[%clk 1:31:45]}
4. e3 {[%clk 1:32:14]}  O-O {[%clk 1:32:08]} 5. Bd3 {[%clk 1:32:39]}  d5 {[%clk 1:32:28]} 6. a3 {[%clk 1:33:04]}  Bxc3+ {[%clk 1:32:52]}
7. bxc3 {[%clk 1:33:32]}  dxc4 {[%clk 1:32:56]} 8. Bxc4 {[%clk 1:33:57]}  c5 {[%clk 1:33:22]} 9. Nf3 {[%clk 1:34:21]}  Qa5 {[%clk 1:33:16]}
10. Bd2 {[%clk 1:31:38]}  Ne4 {[%clk 1:33:26]} 11. Qc2 {[%clk 1:21:31]}  Nxd2 {[%clk 1:30:45]} 12. Nxd2 {[%clk 1:18:11]}  Qc7 {[%clk 1:25:11]}
13. O-O {[%clk 1:16:40]}  Nd7 {[%clk 1:21:30]} 14. Rac1 {[%clk 1:03:25]}  b6 {[%clk 1:08:26]} 15. Rfe1 {[%clk 1:00:00]}  Bb7 {[%clk 1:05:07]}
16. Bd3 {[%clk 0:54:44]}  h6 {[%clk 1:04:35]} 17. e4 {[%clk 0:41:14]}  e5 {[%clk 0:39:17]} 18. d5 {[%clk 0:39:53]}  Nf6 {[%clk 0:38:42]}
19. Qd1 {[%clk 0:28:36]}  Ne8 {[%clk 0:35:02]} 20. c4 {[%clk 0:27:47]}  Nd6 {[%clk 0:30:38]} 21. Nf1 {[%clk 0:27:19]}  Rae8 {[%clk 0:29:39]}
22. Ng3 {[%clk 0:22:36]}  Bc8 {[%clk 0:28:05]} 23. Qh5 {[%clk 0:21:24]}  Bd7 {[%clk 0:25:01]} 24. Be2 {[%clk 0:15:48]}  a6 {[%clk 0:19:05]}
25. Bg4 {[%clk 0:14:50]}  Ba4 {[%clk 0:10:51]} 26. Re3 {[%clk 0:14:08]}  b5 {[%clk 0:10:06]} 27. cxb5 {[%clk 0:14:17]}  axb5 {[%clk 0:10:19]}
28. Nf5 {[%clk 0:13:45]}  Nxf5 {[%clk 0:10:05]} 29. Bxf5 {[%clk 0:14:06]}  Qd6 {[%clk 0:09:24]} 30. Rg3 {[%clk 0:14:28]}  c4 {[%clk 0:07:54]}
31. Rcc3 {[%clk 0:12:14]}  Qf6 {[%clk 0:05:08]} 32. Qe2 {[%clk 0:09:34]}  Ra8 {[%clk 0:04:06]} 33. Rcf3 {[%clk 0:07:45]}  Qd6 {[%clk 0:04:02]}
34. Rg4 {[%clk 0:07:24]}  Ra6 {[%clk 0:01:49]} 35. Rfg3 {[%clk 0:07:07]}  g6 {[%clk 0:01:38]} 36. Qe3 {[%clk 0:05:59]}  Kh7 {[%clk 0:01:18]}
37. Be6 {[%clk 0:04:25]}  Qb6 {[%clk 0:01:14]} 38. Qd2 {[%clk 0:02:03]}  Qd4 {[%clk 0:01:21]} 39. Qxd4 {[%clk 0:01:01]}  exd4 {[%clk 0:01:48]}
40. Bd7 {[%clk 0:01:04]}  c3 {[%clk 0:02:07]} 0-1

[Event "2026 European Womens Championship"]
[Site "Batumi, GE"]
[Date "2026.06.03"]
[Round "9"]
[White "Ptacnikova, Lenka"]
[Black "Golsta, Madara"]
[Result "0-1"]
[Board "58"]
[TimeControl "5400+30"]
[WhiteFideId "305650"]
[BlackFideId "11607386"]
[WhiteElo "2126"]
[BlackElo "2023"]
[WhiteTitle "WGM"]
[WhiteClock "0:17:53"]
[BlackClock "0:29:28"]
[Variant "Standard"]

1. Nf3 {[%clk 1:30:57]}  c5 {[%clk 1:30:49]} 2. c4 {[%clk 1:31:13]}  Nc6 {[%clk 1:30:50]} 3. e3 {[%clk 1:31:17]}  Nf6 {[%clk 1:30:08]}
4. d4 {[%clk 1:30:00]}  cxd4 {[%clk 1:29:35]} 5. exd4 {[%clk 1:27:30]}  d5 {[%clk 1:29:50]} 6. Nc3 {[%clk 1:25:42]}  g6 {[%clk 1:29:38]}
7. cxd5 {[%clk 1:19:53]}  Nxd5 {[%clk 1:29:54]} 8. Bc4 {[%clk 1:20:12]}  Nxc3 {[%clk 1:27:17]} 9. bxc3 {[%clk 1:20:41]}  Bg7 {[%clk 1:27:01]}
10. O-O {[%clk 1:14:18]}  Qc7 {[%clk 1:26:14]} 11. Be2 {[%clk 1:02:13]}  O-O {[%clk 1:25:43]} 12. Bb2 {[%clk 1:01:54]}  Na5 {[%clk 1:22:05]}
13. Qa4 {[%clk 0:58:26]}  Bd7 {[%clk 1:11:52]} 14. Qb4 {[%clk 0:58:44]}  Rfc8 {[%clk 1:08:20]} 15. c4 {[%clk 0:54:11]}  Bg4 {[%clk 0:59:53]}
16. Rac1 {[%clk 0:52:02]}  Bh6 {[%clk 0:54:49]} 17. d5 {[%clk 0:51:27]}  Bxf3 {[%clk 0:44:34]} 18. Bxf3 {[%clk 0:47:35]}  Bxc1 {[%clk 0:42:13]}
19. Rxc1 {[%clk 0:47:55]}  Nxc4 {[%clk 0:36:25]} 20. Qc3 {[%clk 0:28:30]}  Qe5 {[%clk 0:36:09]} 21. Re1 {[%clk 0:26:15]}  Qxc3 {[%clk 0:36:20]}
22. Bxc3 {[%clk 0:26:45]}  Rc7 {[%clk 0:36:28]} 23. h4 {[%clk 0:26:12]}  Nd6 {[%clk 0:35:50]} 24. Be5 {[%clk 0:26:24]}  Rac8 {[%clk 0:35:31]}
25. Bf4 {[%clk 0:26:23]}  Rc4 {[%clk 0:34:43]} 26. g3 {[%clk 0:26:23]}  Nf5 {[%clk 0:32:48]} 27. Bg4 {[%clk 0:26:08]}  Kf8 {[%clk 0:30:47]}
28. Bxf5 {[%clk 0:18:53]}  gxf5 {[%clk 0:31:10]} 29. Re5 {[%clk 0:18:16]}  Ra4 {[%clk 0:29:51]} 30. Bh6+ {[%clk 0:17:33]}  Ke8 {[%clk 0:29:19]}
31. Bg5 {[%clk 0:17:31]}  f6 {[%clk 0:29:03]} 32. Bxf6 {[%clk 0:17:53]}  Re4 {[%clk 0:29:28]} 0-1

[Event "2026 European Womens Championship"]
[Site "Batumi, GE"]
[Date "2026.06.03"]
[Round "9"]
[White "Lomaia, Diana"]
[Black "Hariharan, Shambavi"]
[Result "1/2-1/2"]
[Board "59"]
[TimeControl "5400+30"]
[WhiteFideId "13612476"]
[BlackFideId "488160"]
[WhiteElo "2110"]
[BlackElo "2008"]
[WhiteTitle "WFM"]
[BlackTitle "WFM"]
[WhiteClock "0:18:46"]
[BlackClock "0:14:29"]
[Variant "Standard"]

1. d4 {[%clk 1:30:57]}  Nf6 {[%clk 1:30:55]} 2. c4 {[%clk 1:31:24]}  e6 {[%clk 1:31:21]} 3. Nc3 {[%clk 1:31:50]}  Bb4 {[%clk 1:31:46]}
4. Nf3 {[%clk 1:32:15]}  O-O {[%clk 1:31:56]} 5. e3 {[%clk 1:32:19]}  d5 {[%clk 1:32:07]} 6. Bd3 {[%clk 1:30:45]}  dxc4 {[%clk 1:31:19]}
7. Bxc4 {[%clk 1:31:12]}  c5 {[%clk 1:31:39]} 8. O-O {[%clk 1:31:18]}  Nc6 {[%clk 1:31:30]} 9. a3 {[%clk 1:30:25]}  Ba5 {[%clk 1:31:39]}
10. Ne2 {[%clk 1:29:13]}  cxd4 {[%clk 1:30:37]} 11. exd4 {[%clk 1:27:33]}  h6 {[%clk 1:30:08]} 12. b4 {[%clk 1:27:03]}  Bc7 {[%clk 1:29:58]}
13. Bb2 {[%clk 1:26:36]}  b6 {[%clk 1:13:39]} 14. Qb3 {[%clk 1:21:00]}  Bb7 {[%clk 1:09:05]} 15. Rfd1 {[%clk 1:18:42]}  Ne7 {[%clk 1:07:14]}
16. Ne5 {[%clk 1:18:06]}  Bd5 {[%clk 1:07:13]} 17. Bxd5 {[%clk 1:17:44]}  Nfxd5 {[%clk 1:07:05]} 18. Rac1 {[%clk 1:15:21]}  a6 {[%clk 1:04:02]}
19. Qf3 {[%clk 1:11:53]}  Qe8 {[%clk 0:56:06]} 20. Qd3 {[%clk 1:05:56]}  b5 {[%clk 0:43:47]} 21. Ng3 {[%clk 0:59:38]}  a5 {[%clk 0:37:21]}
22. bxa5 {[%clk 0:51:59]}  Bxa5 {[%clk 0:32:14]} 23. Qf3 {[%clk 0:42:31]}  Nf6 {[%clk 0:26:38]} 24. Ne4 {[%clk 0:40:04]}  Nxe4 {[%clk 0:25:45]}
25. Qxe4 {[%clk 0:40:32]}  Nd5 {[%clk 0:24:49]} 26. Nc6 {[%clk 0:39:04]}  Qd7 {[%clk 0:22:34]} 27. Ne5 {[%clk 0:36:53]}  Qe7 {[%clk 0:20:51]}
28. Rc5 {[%clk 0:34:26]}  Qe8 {[%clk 0:17:43]} 29. Qe2 {[%clk 0:28:46]}  b4 {[%clk 0:16:14]} 30. Nc4 {[%clk 0:20:45]}  bxa3 {[%clk 0:14:38]}
31. Nxa5 {[%clk 0:18:46]}  axb2 {[%clk 0:14:29]} 1/2-1/2

[Event "2026 European Womens Championship"]
[Site "Batumi, GE"]
[Date "2026.06.03"]
[Round "9"]
[White "Tsetskhladze, Mariam"]
[Black "Nahapetyan, Ani"]
[Result "1-0"]
[Board "60"]
[TimeControl "5400+30"]
[WhiteFideId "13623834"]
[BlackFideId "13317776"]
[WhiteElo "2234"]
[BlackElo "1827"]
[WhiteTitle "WFM"]
[WhiteClock "0:52:03"]
[BlackClock "0:39:27"]
[Variant "Standard"]

1. e4 {[%clk 1:30:48]}  c5 {[%clk 1:30:53]} 2. Nf3 {[%clk 1:31:13]}  d6 {[%clk 1:31:19]} 3. d4 {[%clk 1:31:38]}  cxd4 {[%clk 1:31:44]}
4. Nxd4 {[%clk 1:32:04]}  Nf6 {[%clk 1:32:08]} 5. Nc3 {[%clk 1:32:31]}  a6 {[%clk 1:32:33]} 6. Bg5 {[%clk 1:32:52]}  e6 {[%clk 1:32:56]}
7. f4 {[%clk 1:33:19]}  Qb6 {[%clk 1:32:44]} 8. Nb3 {[%clk 1:33:15]}  Be7 {[%clk 1:27:32]} 9. Qd2 {[%clk 1:33:22]}  Nbd7 {[%clk 1:25:04]}
10. O-O-O {[%clk 1:30:46]}  O-O {[%clk 1:22:43]} 11. g4 {[%clk 1:29:53]}  Qc7 {[%clk 1:11:43]} 12. Bd3 {[%clk 1:22:47]}  b5 {[%clk 1:09:45]}
13. a3 {[%clk 1:23:07]}  Nc5 {[%clk 1:06:24]} 14. Nxc5 {[%clk 1:21:21]}  Qxc5 {[%clk 1:02:09]} 15. Bxf6 {[%clk 1:18:24]}  Bxf6 {[%clk 1:02:31]}
16. e5 {[%clk 1:17:55]}  dxe5 {[%clk 0:59:35]} 17. Ne4 {[%clk 1:17:29]}  Qd5 {[%clk 0:57:37]} 18. Nxf6+ {[%clk 1:17:32]}  gxf6 {[%clk 0:57:27]}
19. fxe5 {[%clk 1:17:33]}  Qxe5 {[%clk 0:55:19]} 20. h4 {[%clk 1:10:31]}  Kg7 {[%clk 0:53:25]} 21. Rde1 {[%clk 1:06:49]}  Qc7 {[%clk 0:50:41]}
22. Rhf1 {[%clk 1:05:40]}  Qd8 {[%clk 0:49:27]} 23. Qc3 {[%clk 1:01:59]}  Bb7 {[%clk 0:45:10]} 24. g5 {[%clk 1:02:08]}  Rc8 {[%clk 0:44:48]}
25. gxf6+ {[%clk 1:02:00]}  Kh8 {[%clk 0:45:07]} 26. Qd2 {[%clk 1:01:24]}  Rg8 {[%clk 0:44:53]} 27. Kb1 {[%clk 0:56:07]}  Rg2 {[%clk 0:43:47]}
28. Qh6 {[%clk 0:55:46]}  Qg8 {[%clk 0:44:11]} 29. Re5 {[%clk 0:54:19]}  Rg4 {[%clk 0:38:59]} 30. Rh5 {[%clk 0:51:18]}  Be4 {[%clk 0:39:16]}
31. Bxe4 {[%clk 0:51:42]}  Rxe4 {[%clk 0:39:27]} 32. Rg5 {[%clk 0:52:03]} 1-0

[Event "2026 European Womens Championship"]
[Site "Batumi, GE"]
[Date "2026.06.03"]
[Round "9"]
[White "Radikovic, Anamarija"]
[Black "Rodshtein, Tereza"]
[Result "1-0"]
[Board "61"]
[TimeControl "5400+30"]
[WhiteFideId "14546264"]
[BlackFideId "325449"]
[WhiteElo "1974"]
[BlackElo "2218"]
[WhiteTitle "WFM"]
[BlackTitle "WGM"]
[WhiteClock "0:14:56"]
[BlackClock "0:18:05"]
[Variant "Standard"]

1. e4 {[%clk 1:30:57]}  e5 {[%clk 1:30:53]} 2. Nf3 {[%clk 1:31:22]}  Nc6 {[%clk 1:31:20]} 3. Bb5 {[%clk 1:31:46]}  a6 {[%clk 1:31:46]}
4. Ba4 {[%clk 1:32:12]}  Nf6 {[%clk 1:32:12]} 5. d3 {[%clk 1:32:36]}  b5 {[%clk 1:32:28]} 6. Bb3 {[%clk 1:33:01]}  Bc5 {[%clk 1:32:51]}
7. O-O {[%clk 1:33:24]}  d6 {[%clk 1:32:48]} 8. a4 {[%clk 1:33:21]}  Rb8 {[%clk 1:33:02]} 9. axb5 {[%clk 1:33:23]}  axb5 {[%clk 1:33:28]}
10. c3 {[%clk 1:33:46]}  O-O {[%clk 1:33:07]} 11. Be3 {[%clk 1:33:14]}  Bb6 {[%clk 1:31:54]} 12. Nbd2 {[%clk 1:31:31]}  Ne7 {[%clk 1:28:43]}
13. Bg5 {[%clk 1:26:09]}  Ng6 {[%clk 1:18:52]} 14. Nh4 {[%clk 1:20:38]}  Nxh4 {[%clk 1:11:31]} 15. Bxh4 {[%clk 1:20:39]}  h6 {[%clk 1:11:49]}
16. h3 {[%clk 1:20:07]}  g5 {[%clk 1:11:38]} 17. Bg3 {[%clk 1:20:28]}  Kg7 {[%clk 1:11:32]} 18. Kh1 {[%clk 1:11:09]}  Qe7 {[%clk 1:03:26]}
19. Re1 {[%clk 1:06:24]}  Be6 {[%clk 0:50:54]} 20. Nf1 {[%clk 0:50:19]}  Nd7 {[%clk 0:43:25]} 21. Bc2 {[%clk 0:46:59]}  Qf6 {[%clk 0:32:48]}
22. Ne3 {[%clk 0:44:36]}  Ra8 {[%clk 0:31:09]} 23. Qe2 {[%clk 0:40:02]}  Rh8 {[%clk 0:28:25]} 24. Qh5 {[%clk 0:25:40]}  Rxa1 {[%clk 0:24:49]}
25. Rxa1 {[%clk 0:26:04]}  Nf8 {[%clk 0:25:12]} 26. Ra8 {[%clk 0:16:24]}  Bxe3 {[%clk 0:21:14]} 27. fxe3 {[%clk 0:16:47]}  Qf1+ {[%clk 0:21:41]}
28. Kh2 {[%clk 0:17:12]}  Qc1 {[%clk 0:22:07]} 29. Qd1 {[%clk 0:17:16]}  Qxe3 {[%clk 0:21:14]} 30. d4 {[%clk 0:17:02]}  Ng6 {[%clk 0:16:47]}
31. Rxh8 {[%clk 0:17:24]}  Kxh8 {[%clk 0:17:15]} 32. dxe5 {[%clk 0:13:31]}  dxe5 {[%clk 0:17:42]} 33. Bb3 {[%clk 0:08:49]}  Bxb3 {[%clk 0:16:15]}
34. Qxb3 {[%clk 0:09:13]}  Kg7 {[%clk 0:16:18]} 35. Qd5 {[%clk 0:09:33]}  h5 {[%clk 0:08:34]} 36. Bxe5+ {[%clk 0:09:25]}  Kg8 {[%clk 0:05:40]}
37. Bxc7 {[%clk 0:08:21]}  h4 {[%clk 0:05:08]} 38. Qd8+ {[%clk 0:07:20]}  Kh7 {[%clk 0:04:49]} 39. Qe8 {[%clk 0:06:36]}  Qf2 {[%clk 0:03:52]}
40. Qxb5 {[%clk 0:06:37]}  Kh6 {[%clk 0:02:40]} 41. Qb6 {[%clk 0:01:26]}  Qe2 {[%clk 0:01:21]} 42. Qb4 {[%clk 0:27:04]}  Qf2 {[%clk 0:27:52]}
43. Qb6 {[%clk 0:23:08]}  Qe2 {[%clk 0:28:16]} 44. Qf6 {[%clk 0:16:59]}  Qxe4 {[%clk 0:25:38]} 45. Bd6 {[%clk 0:16:58]}  Qd5 {[%clk 0:19:21]}
46. c4 {[%clk 0:15:20]}  Qd1 {[%clk 0:17:36]} 47. Bf8+ {[%clk 0:14:41]}  Kh5 {[%clk 0:18:05]} 48. Qxf7 {[%clk 0:14:56]} 1-0

[Event "2026 European Womens Championship"]
[Site "Batumi, GE"]
[Date "2026.06.03"]
[Round "9"]
[White "Berke, Ana"]
[Black "Muradyan, Anahit"]
[Result "1-0"]
[Board "62"]
[TimeControl "5400+30"]
[WhiteFideId "14510359"]
[BlackFideId "13314807"]
[WhiteElo "2164"]
[BlackElo "1977"]
[WhiteTitle "WIM"]
[WhiteClock "0:24:00"]
[BlackClock "0:55:27"]
[Variant "Standard"]

1. d4 {[%clk 1:30:56]}  e6 {[%clk 1:30:55]} 2. Nc3 {[%clk 1:28:53]}  d5 {[%clk 1:31:16]} 3. e4 {[%clk 1:27:54]}  Nf6 {[%clk 1:31:40]}
4. Bg5 {[%clk 1:26:01]}  Bb4 {[%clk 1:30:37]} 5. e5 {[%clk 1:23:47]}  h6 {[%clk 1:30:45]} 6. Bd2 {[%clk 1:22:48]}  Bxc3 {[%clk 1:30:42]}
7. Bxc3 {[%clk 1:20:38]}  Ne4 {[%clk 1:30:20]} 8. Qg4 {[%clk 1:06:23]}  O-O {[%clk 1:29:10]} 9. Bd3 {[%clk 0:59:17]}  Nxc3 {[%clk 1:28:25]}
10. bxc3 {[%clk 0:59:28]}  c5 {[%clk 1:28:48]} 11. Nf3 {[%clk 0:55:29]}  Qa5 {[%clk 1:28:21]} 12. O-O {[%clk 0:52:43]}  c4 {[%clk 1:27:21]}
13. Be2 {[%clk 0:52:28]}  Qxc3 {[%clk 1:27:44]} 14. Rae1 {[%clk 0:49:58]}  Qxc2 {[%clk 1:25:35]} 15. Bd1 {[%clk 0:48:05]}  Qg6 {[%clk 1:22:47]}
16. Qf4 {[%clk 0:46:48]}  Nc6 {[%clk 1:22:12]} 17. Qd2 {[%clk 0:43:10]}  b5 {[%clk 1:19:20]} 18. Bc2 {[%clk 0:42:05]}  f5 {[%clk 1:17:15]}
19. exf6 {[%clk 0:42:11]}  Qxf6 {[%clk 1:17:42]} 20. Bb1 {[%clk 0:41:11]}  Bd7 {[%clk 1:06:21]} 21. Ne5 {[%clk 0:39:54]}  Nxe5 {[%clk 1:03:13]}
22. Rxe5 {[%clk 0:39:22]}  Qf4 {[%clk 1:03:05]} 23. Re3 {[%clk 0:36:15]}  e5 {[%clk 1:01:06]} 24. Qb4 {[%clk 0:27:19]}  Qxd4 {[%clk 0:57:17]}
25. Qd6 {[%clk 0:24:00]}  Bf5 {[%clk 0:53:58]} 26. Bxf5 {[%clk 0:22:47]}  Rxf5 {[%clk 0:54:24]} 27. Qe6+ {[%clk 0:22:46]}  Rf7 {[%clk 0:54:50]}
28. Rxe5 {[%clk 0:21:42]}  c3 {[%clk 0:47:08]} 29. Rxd5 {[%clk 0:20:12]}  Qc4 {[%clk 0:43:13]} 30. h3 {[%clk 0:18:30]}  c2 {[%clk 0:42:15]}
31. Rc1 {[%clk 0:18:38]}  Raf8 {[%clk 0:41:28]} 32. f3 {[%clk 0:14:22]}  Qxa2 {[%clk 0:41:06]} 33. Qe4 {[%clk 0:13:48]}  Rf4 {[%clk 0:40:21]}
34. Qd3 {[%clk 0:12:22]}  b4 {[%clk 0:36:04]} 35. Rxc2 {[%clk 0:11:18]}  Qb1+ {[%clk 0:36:32]} 36. Kh2 {[%clk 0:11:34]}  b3 {[%clk 0:36:05]}
37. Rc3 {[%clk 0:11:41]}  Qa2 {[%clk 0:34:28]} 38. Rd7 {[%clk 0:07:31]}  b2 {[%clk 0:33:05]} 39. Rb3 {[%clk 0:06:17]}  Rxf3 {[%clk 0:29:57]}
40. Qd5+ {[%clk 0:04:09]}  Kh8 {[%clk 0:30:21]} 41. Qe5 {[%clk 0:01:37]}  R3f7 {[%clk 0:24:34]} 42. Rxf7 {[%clk 0:29:10]}  Rxf7 {[%clk 0:54:58]}
43. Rb8+ {[%clk 0:27:41]}  Kh7 {[%clk 0:55:16]} 44. Qe4+ {[%clk 0:25:53]}  g6 {[%clk 0:55:27]} 45. Qe8 {[%clk 0:24:00]} 1-0

[Event "2026 European Womens Championship"]
[Site "Batumi, GE"]
[Date "2026.06.03"]
[Round "9"]
[White "Avelino, Camila Biscaya"]
[Black "Gueci, Tea"]
[Result "1/2-1/2"]
[Board "63"]
[TimeControl "5400+30"]
[WhiteFideId "1938975"]
[BlackFideId "872342"]
[WhiteElo "1937"]
[BlackElo "2160"]
[WhiteTitle "WFM"]
[BlackTitle "WIM"]
[WhiteClock "0:02:18"]
[BlackClock "0:02:18"]
[Variant "Standard"]

1. e4 {[%clk 1:30:54]}  e5 {[%clk 1:30:58]} 2. Nf3 {[%clk 1:31:16]}  Nc6 {[%clk 1:31:24]} 3. Bb5 {[%clk 1:31:36]}  a6 {[%clk 1:31:50]}
4. Ba4 {[%clk 1:32:00]}  Nf6 {[%clk 1:32:16]} 5. O-O {[%clk 1:32:14]}  d6 {[%clk 1:32:32]} 6. c3 {[%clk 1:25:29]}  Bd7 {[%clk 1:32:54]}
7. Re1 {[%clk 1:23:35]}  g6 {[%clk 1:33:04]} 8. d4 {[%clk 1:22:25]}  Bg7 {[%clk 1:33:28]} 9. dxe5 {[%clk 1:12:05]}  Nxe5 {[%clk 1:33:42]}
10. Nxe5 {[%clk 1:10:59]}  dxe5 {[%clk 1:34:05]} 11. Bg5 {[%clk 1:06:15]}  b5 {[%clk 1:30:41]} 12. Bb3 {[%clk 1:04:37]}  O-O {[%clk 1:23:37]}
13. Nd2 {[%clk 0:52:03]}  h6 {[%clk 1:17:02]} 14. Be3 {[%clk 0:47:59]}  Qe7 {[%clk 1:12:44]} 15. a4 {[%clk 0:45:03]}  Bc6 {[%clk 0:58:31]}
16. Qc2 {[%clk 0:43:27]}  Ng4 {[%clk 0:49:55]} 17. Nf1 {[%clk 0:42:40]}  Bb7 {[%clk 0:42:22]} 18. f3 {[%clk 0:40:55]}  Nxe3 {[%clk 0:40:31]}
19. Nxe3 {[%clk 0:41:16]}  Qc5 {[%clk 0:40:58]} 20. Qf2 {[%clk 0:40:57]}  c6 {[%clk 0:37:00]} 21. Nc2 {[%clk 0:32:54]}  Qxf2+ {[%clk 0:32:59]}
22. Kxf2 {[%clk 0:33:18]}  Rfd8 {[%clk 0:33:09]} 23. axb5 {[%clk 0:33:20]}  axb5 {[%clk 0:32:20]} 24. Rxa8 {[%clk 0:32:59]}  Bxa8 {[%clk 0:32:19]}
25. Ke2 {[%clk 0:29:58]}  c5 {[%clk 0:23:20]} 26. Ne3 {[%clk 0:23:11]}  c4 {[%clk 0:19:51]} 27. Bc2 {[%clk 0:23:34]}  Bf8 {[%clk 0:19:13]}
28. b3 {[%clk 0:21:26]}  cxb3 {[%clk 0:14:20]} 29. Bxb3 {[%clk 0:21:48]}  h5 {[%clk 0:14:49]} 30. Ra1 {[%clk 0:19:44]}  Bc5 {[%clk 0:13:56]}
31. Bd5 {[%clk 0:17:52]}  Bxe3 {[%clk 0:08:30]} 32. Rxa8 {[%clk 0:18:14]}  Rxa8 {[%clk 0:08:31]} 33. Bxa8 {[%clk 0:18:38]}  Bc5 {[%clk 0:08:37]}
34. Bc6 {[%clk 0:18:58]}  b4 {[%clk 0:08:59]} 35. cxb4 {[%clk 0:19:23]}  Bxb4 {[%clk 0:09:26]} 36. h3 {[%clk 0:18:18]}  h4 {[%clk 0:07:52]}
37. f4 {[%clk 0:14:37]}  exf4 {[%clk 0:07:22]} 38. Kf3 {[%clk 0:15:02]}  g5 {[%clk 0:07:16]} 39. Bd7 {[%clk 0:15:13]}  Kg7 {[%clk 0:04:46]}
40. Bg4 {[%clk 0:15:31]}  Kf6 {[%clk 0:04:52]} 41. Bf5 {[%clk 0:15:49]}  Ke5 {[%clk 0:05:09]} 42. Bg4 {[%clk 0:15:59]}  Kd4 {[%clk 0:02:32]}
43. Bh5 {[%clk 0:14:22]}  f6 {[%clk 0:02:18]} 44. e5 {[%clk 0:14:22]}  Kxe5 {[%clk 0:02:18]} 1/2-1/2